[Event "Titled Tuesday Blitz December 20 Early 2022"]
[White "harperchesstt"]
[Black "pheonixking2000"]
[WhiteElo "2366"]
[BlackElo "2806"]
[Result "0-1"]
[Round "02"]
[TimeControl "180+2"]
[Date "2022.12.20"]
[WhiteClock "0:00:02"]
[BlackClock "0:00:10"]

1. e4 {[%clk 0:03:00]}  c6 {[%clk 0:01:52]} 2. d4 {[%clk 0:02:58]}  d5 {[%clk 0:01:53]} 3. exd5 {[%clk 0:02:58]}  cxd5 {[%clk 0:01:53]} 4. c4 {[%clk 0:02:59]}  Nf6 {[%clk 0:01:53]} 5. Nc3 {[%clk 0:02:57]}  g6 {[%clk 0:01:52]} 6. Nf3 {[%clk 0:02:49]}  Bg7 {[%clk 0:01:52]} 7. c5 {[%clk 0:02:50]}  O-O {[%clk 0:01:50]} 8. b4 {[%clk 0:02:41]}  Bg4 {[%clk 0:01:49]} 9. Be2 {[%clk 0:02:40]}  Ne4 {[%clk 0:01:49]} 10. Bb2 {[%clk 0:02:28]}  Nc6 {[%clk 0:01:49]} 11. b5 {[%clk 0:02:14]}  Bxf3 {[%clk 0:01:47]} 12. bxc6 {[%clk 0:02:10]}  Bxe2 {[%clk 0:01:33]} 13. Qxe2 {[%clk 0:01:50]}  Nxc3 {[%clk 0:01:22]} 14. Bxc3 {[%clk 0:01:51]}  bxc6 {[%clk 0:01:22]} 15. O-O {[%clk 0:01:49]}  e6 {[%clk 0:01:19]} 16. Rfe1 {[%clk 0:01:45]}  Qc7 {[%clk 0:01:18]} 17. g3 {[%clk 0:01:42]}  Rab8 {[%clk 0:01:18]} 18. f4 {[%clk 0:01:42]}  Rb5 {[%clk 0:01:15]} 19. Qc2 {[%clk 0:01:32]}  Rfb8 {[%clk 0:01:10]} 20. Reb1 {[%clk 0:01:31]}  Qb7 {[%clk 0:01:08]} 21. Rxb5 {[%clk 0:01:19]}  Qxb5 {[%clk 0:01:09]} 22. Qd2 {[%clk 0:00:51]}  Qc4 {[%clk 0:01:00]} 23. Rc1 {[%clk 0:00:45]}  h5 {[%clk 0:00:59]} 24. Ba1 {[%clk 0:00:35]}  Qa4 {[%clk 0:00:53]} 25. Bc3 {[%clk 0:00:27]}  Qa3 {[%clk 0:00:50]} 26. Rc2 {[%clk 0:00:25]}  Rb1+ {[%clk 0:00:48]} 27. Kg2 {[%clk 0:00:24]}  Qa4 {[%clk 0:00:46]} 28. Rb2 {[%clk 0:00:20]}  Rd1 {[%clk 0:00:46]} 29. Rb8+ {[%clk 0:00:18]}  Kh7 {[%clk 0:00:45]} 30. Qe2 {[%clk 0:00:18]}  Bxd4 {[%clk 0:00:41]} 31. Be1 {[%clk 0:00:14]}  Bxc5 {[%clk 0:00:33]} 32. g4 {[%clk 0:00:13]}  Qxf4 {[%clk 0:00:19]} 33. gxh5 {[%clk 0:00:12]}  Rxe1 {[%clk 0:00:17]} 34. hxg6+ {[%clk 0:00:11]}  Kg7 {[%clk 0:00:11]} 35. Qb2+ {[%clk 0:00:06]}  Bd4 {[%clk 0:00:10]} 36. Qb4 {[%clk 0:00:02]}  Qg4# {[%clk 0:00:10]} 0-1


[Site "https://www.chess.com"]

[Event "Titled Tuesday Blitz December 20 Early 2022"]
[White "jaldjald"]
[Black "CaptainCasanova"]
[WhiteElo "2386"]
[BlackElo "2584"]
[Result "1-0"]
[Round "02"]
[TimeControl "180+2"]
[Date "2022.12.20"]
[WhiteClock "0:01:07"]
[BlackClock "0:01:57"]

1. e4 {[%clk 0:02:59]}  g6 {[%clk 0:02:59]} 2. d4 {[%clk 0:02:52]}  Bg7 {[%clk 0:03:00]} 3. Nf3 {[%clk 0:02:46]}  d6 {[%clk 0:03:00]} 4. Nc3 {[%clk 0:02:43]}  a6 {[%clk 0:03:00]} 5. a4 {[%clk 0:02:40]}  Nd7 {[%clk 0:02:53]} 6. Be3 {[%clk 0:02:38]}  Ngf6 {[%clk 0:02:52]} 7. h3 {[%clk 0:02:37]}  e5 {[%clk 0:02:42]} 8. dxe5 {[%clk 0:02:28]}  dxe5 {[%clk 0:02:42]} 9. a5 {[%clk 0:02:20]}  Qe7 {[%clk 0:02:37]} 10. Bc4 {[%clk 0:02:19]}  Qb4 {[%clk 0:02:35]} 11. Bb3 {[%clk 0:02:11]}  Nc5 {[%clk 0:02:18]} 12. Bxc5 {[%clk 0:01:54]}  Qxc5 {[%clk 0:02:18]} 13. Ng5 {[%clk 0:01:54]}  O-O {[%clk 0:02:18]} 14. O-O {[%clk 0:01:34]}  h6 {[%clk 0:02:16]} 15. Nxf7 {[%clk 0:01:27]}  Rxf7 {[%clk 0:02:16]} 16. Qd8+ {[%clk 0:01:26]}  Bf8 {[%clk 0:02:12]} 17. Qxf6 {[%clk 0:01:24]}  Qe7 {[%clk 0:01:56]} 18. Qxg6+ {[%clk 0:01:21]}  Bg7 {[%clk 0:01:57]} 19. Rad1 {[%clk 0:01:07]} 1-0


[Site "https://www.chess.com"]

[Event "Titled Tuesday Blitz December 20 Early 2022"]
[White "kidagent"]
[Black "MartinMatthiesen"]
[WhiteElo "2292"]
[BlackElo "2497"]
[Result "0-1"]
[Round "02"]
[TimeControl "180+2"]
[Date "2022.12.20"]
[WhiteClock "0:00:02"]
[BlackClock "0:00:53"]

1. e4 {[%clk 0:03:00]}  e5 {[%clk 0:02:59]} 2. Nf3 {[%clk 0:03:00]}  Nc6 {[%clk 0:02:59]} 3. Bb5 {[%clk 0:03:01]}  a6 {[%clk 0:02:58]} 4. Ba4 {[%clk 0:03:00]}  Nf6 {[%clk 0:02:59]} 5. O-O {[%clk 0:03:00]}  Be7 {[%clk 0:02:59]} 6. Re1 {[%clk 0:03:00]}  b5 {[%clk 0:02:59]} 7. Bb3 {[%clk 0:03:00]}  O-O {[%clk 0:02:59]} 8. a4 {[%clk 0:02:59]}  b4 {[%clk 0:02:57]} 9. d3 {[%clk 0:02:56]}  d6 {[%clk 0:02:54]} 10. h3 {[%clk 0:02:55]}  Na5 {[%clk 0:02:46]} 11. Ba2 {[%clk 0:02:55]}  Be6 {[%clk 0:02:45]} 12. Bxe6 {[%clk 0:02:42]}  fxe6 {[%clk 0:02:46]} 13. c3 {[%clk 0:02:40]}  Rb8 {[%clk 0:02:42]} 14. Nbd2 {[%clk 0:02:37]}  c5 {[%clk 0:02:38]} 15. d4 {[%clk 0:02:30]}  bxc3 {[%clk 0:02:27]} 16. bxc3 {[%clk 0:02:28]}  exd4 {[%clk 0:02:25]} 17. cxd4 {[%clk 0:02:28]}  c4 {[%clk 0:02:24]} 18. e5 {[%clk 0:02:08]}  dxe5 {[%clk 0:02:21]} 19. dxe5 {[%clk 0:02:06]}  Nd5 {[%clk 0:02:20]} 20. Ne4 {[%clk 0:01:53]}  Bb4 {[%clk 0:02:12]} 21. Bd2 {[%clk 0:01:48]}  c3 {[%clk 0:01:57]} 22. Bg5 {[%clk 0:01:41]}  Qc7 {[%clk 0:01:49]} 23. Qc2 {[%clk 0:01:34]}  Rxf3 {[%clk 0:01:44]} 24. gxf3 {[%clk 0:01:34]}  Qxe5 {[%clk 0:01:43]} 25. Bh4 {[%clk 0:01:28]}  Qf5 {[%clk 0:01:41]} 26. Bg3 {[%clk 0:01:21]}  Rf8 {[%clk 0:01:37]} 27. Kh2 {[%clk 0:01:04]}  Nf4 {[%clk 0:01:35]} 28. Bxf4 {[%clk 0:00:55]}  Qxf4+ {[%clk 0:01:35]} 29. Kg1 {[%clk 0:00:52]}  Qxf3 {[%clk 0:01:21]} 30. Re3 {[%clk 0:00:46]}  Qf5 {[%clk 0:01:20]} 31. Rd1 {[%clk 0:00:26]}  Nc4 {[%clk 0:01:19]} 32. Rg3 {[%clk 0:00:25]}  Nd2 {[%clk 0:01:12]} 33. Re1 {[%clk 0:00:13]}  Nf3+ {[%clk 0:01:04]} 34. Rxf3 {[%clk 0:00:10]}  Qxf3 {[%clk 0:01:05]} 35. Ng5 {[%clk 0:00:08]}  Qf5 {[%clk 0:01:04]} 36. Qxf5 {[%clk 0:00:05]}  exf5 {[%clk 0:01:04]} 37. Rc1 {[%clk 0:00:01]}  Rd8 {[%clk 0:01:00]} 38. Kg2 {[%clk 0:00:01]}  Rd2 {[%clk 0:00:59]} 39. Nf3 {[%clk 0:00:01]}  Ra2 {[%clk 0:00:58]} 40. Ne5 {[%clk 0:00:01]}  c2 {[%clk 0:00:53]} 41. Nc6 {[%clk 0:00:02]}  Ba3 {[%clk 0:00:53]} 0-1


[Site "https://www.chess.com"]

[Event "Titled Tuesday Blitz December 20 Early 2022"]
[White "lemayvega"]
[Black "Ball, John D L"]
[BlackFideId "402150"]
[WhiteElo "2529"]
[BlackElo "2230"]
[Result "0-1"]
[Round "02"]
[TimeControl "180+2"]
[Date "2022.12.20"]
[WhiteClock "0:00:05"]
[BlackClock "0:00:08"]

1. e4 {[%clk 0:03:00]}  c5 {[%clk 0:02:59]} 2. Nf3 {[%clk 0:02:58]}  g6 {[%clk 0:02:59]} 3. c3 {[%clk 0:02:57]}  Bg7 {[%clk 0:02:59]} 4. d4 {[%clk 0:02:58]}  cxd4 {[%clk 0:02:59]} 5. cxd4 {[%clk 0:02:58]}  Nf6 {[%clk 0:03:00]} 6. e5 {[%clk 0:02:58]}  Nd5 {[%clk 0:02:59]} 7. Nc3 {[%clk 0:02:58]}  Nxc3 {[%clk 0:02:59]} 8. bxc3 {[%clk 0:02:59]}  O-O {[%clk 0:02:58]} 9. h3 {[%clk 0:02:57]}  d6 {[%clk 0:02:58]} 10. exd6 {[%clk 0:02:55]}  Qxd6 {[%clk 0:02:59]} 11. a4 {[%clk 0:02:50]}  Nc6 {[%clk 0:02:58]} 12. Bc4 {[%clk 0:02:43]}  Be6 {[%clk 0:02:28]} 13. Bxe6 {[%clk 0:02:41]}  Qxe6+ {[%clk 0:02:29]} 14. Qe2 {[%clk 0:02:41]}  Qb3 {[%clk 0:02:25]} 15. Qb2 {[%clk 0:02:34]}  Qc4 {[%clk 0:02:07]} 16. Bd2 {[%clk 0:02:04]}  e5 {[%clk 0:02:01]} 17. Qb5 {[%clk 0:02:02]}  Qe6 {[%clk 0:01:14]} 18. d5 {[%clk 0:01:56]}  a6 {[%clk 0:01:13]} 19. Qc5 {[%clk 0:00:49]}  Qe7 {[%clk 0:01:08]} 20. Be3 {[%clk 0:00:50]}  e4 {[%clk 0:00:52]} 21. dxc6 {[%clk 0:00:48]}  Qxc5 {[%clk 0:00:52]} 22. Bxc5 {[%clk 0:00:47]}  Bxc3+ {[%clk 0:00:52]} 23. Ke2 {[%clk 0:00:40]}  exf3+ {[%clk 0:00:52]} 24. Kxf3 {[%clk 0:00:37]}  Bxa1 {[%clk 0:00:48]} 25. cxb7 {[%clk 0:00:34]}  Rab8 {[%clk 0:00:43]} 26. Bxf8 {[%clk 0:00:32]}  Kxf8 {[%clk 0:00:33]} 27. Rxa1 {[%clk 0:00:32]}  Rxb7 {[%clk 0:00:33]} 28. Ra3 {[%clk 0:00:26]}  Rb4 {[%clk 0:00:33]} 29. g3 {[%clk 0:00:21]}  a5 {[%clk 0:00:34]} 30. h4 {[%clk 0:00:20]}  h5 {[%clk 0:00:34]} 31. Ke3 {[%clk 0:00:18]}  Ke7 {[%clk 0:00:34]} 32. Kf3 {[%clk 0:00:18]}  Kf6 {[%clk 0:00:33]} 33. Ke3 {[%clk 0:00:17]}  Kf5 {[%clk 0:00:34]} 34. Kf3 {[%clk 0:00:17]}  f6 {[%clk 0:00:34]} 35. Ra2 {[%clk 0:00:16]}  g5 {[%clk 0:00:33]} 36. hxg5 {[%clk 0:00:16]}  fxg5 {[%clk 0:00:34]} 37. Kg2 {[%clk 0:00:16]}  Kg4 {[%clk 0:00:31]} 38. Ra3 {[%clk 0:00:16]}  h4 {[%clk 0:00:29]} 39. gxh4 {[%clk 0:00:16]}  gxh4 {[%clk 0:00:30]} 40. Kh2 {[%clk 0:00:13]}  Rf4 {[%clk 0:00:23]} 41. Kg2 {[%clk 0:00:12]}  Kg5 {[%clk 0:00:22]} 42. Ra2 {[%clk 0:00:09]}  Rb4 {[%clk 0:00:20]} 43. Ra3 {[%clk 0:00:09]}  Kg4 {[%clk 0:00:20]} 44. Kh2 {[%clk 0:00:10]}  Rc4 {[%clk 0:00:19]} 45. Kg2 {[%clk 0:00:07]}  Rd4 {[%clk 0:00:18]} 46. Kh2 {[%clk 0:00:07]}  Rb4 {[%clk 0:00:17]} 47. Kg2 {[%clk 0:00:08]}  Rf4 {[%clk 0:00:15]} 48. Ra2 {[%clk 0:00:08]}  Kf5 {[%clk 0:00:08]} 49. Ra3 {[%clk 0:00:08]}  Ke5 {[%clk 0:00:07]} 50. Re3+ {[%clk 0:00:07]}  Kd5 {[%clk 0:00:07]} 51. Ra3 {[%clk 0:00:06]}  Kc5 {[%clk 0:00:07]} 52. Kh3 {[%clk 0:00:03]}  Kb4 {[%clk 0:00:07]} 53. Ra2 {[%clk 0:00:02]}  Kb3 {[%clk 0:00:07]} 54. Ra1 {[%clk 0:00:02]}  Rxf2 {[%clk 0:00:07]} 55. Kxh4 {[%clk 0:00:02]}  Rf4+ {[%clk 0:00:07]} 56. Kg3 {[%clk 0:00:03]}  Rxa4 {[%clk 0:00:08]} 57. Rb1+ {[%clk 0:00:03]}  Kc2 {[%clk 0:00:09]} 58. Rb5 {[%clk 0:00:04]}  Ra3+ {[%clk 0:00:05]} 59. Kf2 {[%clk 0:00:04]}  a4 {[%clk 0:00:06]} 60. Ke2 {[%clk 0:00:05]}  Rc3 {[%clk 0:00:05]} 61. Ra5 {[%clk 0:00:05]}  a3 {[%clk 0:00:06]} 62. Ke1 {[%clk 0:00:05]}  Re3+ {[%clk 0:00:06]} 63. Kf2 {[%clk 0:00:06]}  Rb3 {[%clk 0:00:06]} 64. Ke2 {[%clk 0:00:06]}  Kb2 {[%clk 0:00:07]} 65. Kd2 {[%clk 0:00:06]}  a2 {[%clk 0:00:08]} 66. Ra8 {[%clk 0:00:05]}  a1=Q {[%clk 0:00:08]} 0-1


[Site "https://www.chess.com"]

[Event "Titled Tuesday Blitz December 20 Early 2022"]
[White "maurovargas01"]
[Black "Kukku, Ramesh"]
[BlackFideId "25695606"]
[WhiteElo "1920"]
[BlackElo "1575"]
[Result "0-1"]
[Round "02"]
[TimeControl "180+2"]
[Date "2022.12.20"]
[WhiteClock "0:01:13"]
[BlackClock "0:00:58"]

1. e4 {[%clk 0:02:55]}  Nc6 {[%clk 0:02:59]} 2. Nc3 {[%clk 0:02:54]}  e5 {[%clk 0:02:58]} 3. f4 {[%clk 0:02:55]}  Bc5 {[%clk 0:02:57]} 4. Nf3 {[%clk 0:02:56]}  d6 {[%clk 0:02:57]} 5. Na4 {[%clk 0:02:52]}  Bg4 {[%clk 0:02:53]} 6. Nxc5 {[%clk 0:02:51]}  dxc5 {[%clk 0:02:53]} 7. d3 {[%clk 0:02:50]}  Nd4 {[%clk 0:02:49]} 8. Be2 {[%clk 0:02:46]}  Bxf3 {[%clk 0:02:44]} 9. Bxf3 {[%clk 0:02:45]}  Ne7 {[%clk 0:02:36]} 10. O-O {[%clk 0:02:44]}  Nxf3+ {[%clk 0:02:29]} 11. Qxf3 {[%clk 0:02:42]}  exf4 {[%clk 0:02:27]} 12. Bxf4 {[%clk 0:02:39]}  O-O {[%clk 0:02:22]} 13. h4 {[%clk 0:02:28]}  f5 {[%clk 0:02:11]} 14. h5 {[%clk 0:02:19]}  fxe4 {[%clk 0:01:58]} 15. dxe4 {[%clk 0:02:17]}  Qd4+ {[%clk 0:01:51]} 16. Kh1 {[%clk 0:02:15]}  Qxb2 {[%clk 0:01:42]} 17. c3 {[%clk 0:02:14]}  Qb6 {[%clk 0:01:38]} 18. Rab1 {[%clk 0:02:08]}  Qc6 {[%clk 0:01:36]} 19. Qg3 {[%clk 0:02:06]}  Rf7 {[%clk 0:01:32]} 20. Bxc7 {[%clk 0:02:03]}  Qxe4 {[%clk 0:01:28]} 21. Rxf7 {[%clk 0:02:00]}  Qxb1+ {[%clk 0:01:28]} 22. Kh2 {[%clk 0:02:00]}  Kxf7 {[%clk 0:01:27]} 23. Be5 {[%clk 0:01:58]}  Nf5 {[%clk 0:01:17]} 24. Qf3 {[%clk 0:01:49]}  Re8 {[%clk 0:01:14]} 25. Qd5+ {[%clk 0:01:48]}  Re6 {[%clk 0:01:08]} 26. Qd7+ {[%clk 0:01:47]}  Ne7 {[%clk 0:01:07]} 27. Bg3 {[%clk 0:01:33]}  Qf5 {[%clk 0:01:06]} 28. Qxb7 {[%clk 0:01:23]}  Qxh5+ {[%clk 0:01:06]} 29. Kg1 {[%clk 0:01:23]}  Qd1+ {[%clk 0:01:05]} 30. Kf2 {[%clk 0:01:20]}  Qe1+ {[%clk 0:01:02]} 31. Kf3 {[%clk 0:01:17]}  Qe3+ {[%clk 0:00:59]} 32. Kg4 {[%clk 0:01:14]}  Rg6+ {[%clk 0:00:59]} 33. Kh3 {[%clk 0:01:13]}  Qxg3# {[%clk 0:00:58]} 0-1


[Site "https://www.chess.com"]

[Event "Titled Tuesday Blitz December 20 Early 2022"]
[White "romulocardoso"]
[Black "Mischuk, Dmitry"]
[BlackFideId "14118734"]
[WhiteElo "2390"]
[BlackElo "2298"]
[Result "1/2-1/2"]
[Round "02"]
[TimeControl "180+2"]
[Date "2022.12.20"]
[WhiteClock "0:01:45"]
[BlackClock "0:02:01"]

1. e4 {[%clk 0:03:00]}  c5 {[%clk 0:02:59]} 2. Nf3 {[%clk 0:03:00]}  d6 {[%clk 0:02:59]} 3. d4 {[%clk 0:03:01]}  cxd4 {[%clk 0:03:00]} 4. Nxd4 {[%clk 0:03:01]}  Nf6 {[%clk 0:03:00]} 5. Nc3 {[%clk 0:03:02]}  g6 {[%clk 0:03:00]} 6. Be3 {[%clk 0:02:57]}  Bg7 {[%clk 0:03:00]} 7. Bc4 {[%clk 0:02:57]}  O-O {[%clk 0:02:55]} 8. f3 {[%clk 0:02:57]}  Nc6 {[%clk 0:02:54]} 9. Qd2 {[%clk 0:02:58]}  Nxd4 {[%clk 0:02:55]} 10. Bxd4 {[%clk 0:02:58]}  Be6 {[%clk 0:02:55]} 11. Bxe6 {[%clk 0:02:58]}  fxe6 {[%clk 0:02:55]} 12. O-O-O {[%clk 0:02:59]}  Qa5 {[%clk 0:02:50]} 13. Kb1 {[%clk 0:02:58]}  Nd7 {[%clk 0:02:49]} 14. Bxg7 {[%clk 0:02:57]}  Kxg7 {[%clk 0:02:50]} 15. h4 {[%clk 0:02:55]}  Rac8 {[%clk 0:02:39]} 16. h5 {[%clk 0:02:55]}  gxh5 {[%clk 0:02:39]} 17. g4 {[%clk 0:02:52]}  Rxc3 {[%clk 0:02:22]} 18. Rxh5 {[%clk 0:02:11]}  Rc5 {[%clk 0:02:19]} 19. Qxa5 {[%clk 0:02:11]}  Rxa5 {[%clk 0:02:17]} 20. Rxa5 {[%clk 0:02:12]}  Rxf3 {[%clk 0:02:13]} 21. Rxa7 {[%clk 0:02:11]}  Nc5 {[%clk 0:02:13]} 22. e5 {[%clk 0:02:08]}  dxe5 {[%clk 0:02:08]} 23. b4 {[%clk 0:02:07]}  Ne4 {[%clk 0:02:08]} 24. Rxb7 {[%clk 0:02:07]}  Nc3+ {[%clk 0:02:08]} 25. Kc1 {[%clk 0:02:04]}  Nxd1 {[%clk 0:02:07]} 26. Kxd1 {[%clk 0:02:04]}  Kf6 {[%clk 0:02:07]} 27. a4 {[%clk 0:02:04]}  Ra3 {[%clk 0:02:07]} 28. a5 {[%clk 0:02:04]}  e4 {[%clk 0:02:07]} 29. Rb5 {[%clk 0:02:00]}  e5 {[%clk 0:02:04]} 30. Ke2 {[%clk 0:01:44]}  Rc3 {[%clk 0:02:03]} 31. Kd2 {[%clk 0:01:44]}  Ra3 {[%clk 0:02:03]} 32. Ke2 {[%clk 0:01:44]}  Rc3 {[%clk 0:02:01]} 33. Kd2 {[%clk 0:01:44]}  Ra3 {[%clk 0:02:01]} 34. Ke2 {[%clk 0:01:45]} 1/2-1/2


[Site "https://www.chess.com"]

[Event "Titled Tuesday Blitz December 20 Early 2022"]
[White "soumeowstreaming"]
[Black "Elbek_Jumanov"]
[WhiteElo "2155"]
[BlackElo "2435"]
[Result "0-1"]
[Round "02"]
[TimeControl "180+2"]
[Date "2022.12.20"]
[WhiteClock "0:00:01"]
[BlackClock "0:00:29"]

1. e4 {[%clk 0:03:00]}  c5 {[%clk 0:02:59]} 2. Nf3 {[%clk 0:03:00]}  e6 {[%clk 0:03:00]} 3. d4 {[%clk 0:03:00]}  cxd4 {[%clk 0:03:01]} 4. Nxd4 {[%clk 0:03:01]}  Nf6 {[%clk 0:03:01]} 5. Bd3 {[%clk 0:02:53]}  Nc6 {[%clk 0:03:00]} 6. Be3 {[%clk 0:02:41]}  d5 {[%clk 0:02:52]} 7. Nxc6 {[%clk 0:02:34]}  bxc6 {[%clk 0:02:51]} 8. e5 {[%clk 0:02:34]}  Nd7 {[%clk 0:02:52]} 9. f4 {[%clk 0:02:31]}  a5 {[%clk 0:02:51]} 10. c4 {[%clk 0:02:13]}  Bc5 {[%clk 0:02:48]} 11. Qf3 {[%clk 0:02:06]}  Qb6 {[%clk 0:02:41]} 12. Bxc5 {[%clk 0:01:53]}  Nxc5 {[%clk 0:02:39]} 13. b3 {[%clk 0:01:43]}  Qb4+ {[%clk 0:02:30]} 14. Nd2 {[%clk 0:01:38]}  Qc3 {[%clk 0:02:19]} 15. Ke2 {[%clk 0:01:33]}  Ba6 {[%clk 0:02:05]} 16. Rac1 {[%clk 0:01:28]}  Qb4 {[%clk 0:01:40]} 17. Bb1 {[%clk 0:01:15]}  Rd8 {[%clk 0:01:09]} 18. Qc3 {[%clk 0:01:00]}  Qxc3 {[%clk 0:00:48]} 19. Rxc3 {[%clk 0:01:01]}  d4 {[%clk 0:00:47]} 20. Rg3 {[%clk 0:00:56]}  g6 {[%clk 0:00:46]} 21. Rc1 {[%clk 0:00:38]}  Ke7 {[%clk 0:00:46]} 22. Ne4 {[%clk 0:00:27]}  Nxe4 {[%clk 0:00:39]} 23. Bxe4 {[%clk 0:00:28]}  c5 {[%clk 0:00:40]} 24. Rd3 {[%clk 0:00:23]}  Rb8 {[%clk 0:00:39]} 25. g4 {[%clk 0:00:20]}  h5 {[%clk 0:00:38]} 26. g5 {[%clk 0:00:15]}  Rb6 {[%clk 0:00:34]} 27. Kf3 {[%clk 0:00:14]}  Rhb8 {[%clk 0:00:35]} 28. Rd2 {[%clk 0:00:04]}  Rb4 {[%clk 0:00:32]} 29. Bd3 {[%clk 0:00:03]}  a4 {[%clk 0:00:31]} 30. Bc2 {[%clk 0:00:01]}  axb3 {[%clk 0:00:28]} 31. axb3 {[%clk 0:00:02]}  Bb7+ {[%clk 0:00:28]} 32. Kf2 {[%clk 0:00:01]}  Ra8 {[%clk 0:00:29]} 0-1


[Site "https://www.chess.com"]

[Event "Titled Tuesday Blitz December 20 Early 2022"]
[White "tylityli"]
[Black "Prasad, M.V.S"]
[BlackFideId "5018790"]
[WhiteElo "2334"]
[BlackElo "1945"]
[Result "0-1"]
[Round "02"]
[TimeControl "180+2"]
[Date "2022.12.20"]
[WhiteClock "0:00:03"]
[BlackClock "0:00:03"]

1. d4 {[%clk 0:02:51]}  Nf6 {[%clk 0:02:59]} 2. c4 {[%clk 0:02:50]}  e6 {[%clk 0:02:59]} 3. Nc3 {[%clk 0:02:50]}  b6 {[%clk 0:02:59]} 4. a3 {[%clk 0:02:44]}  Bb7 {[%clk 0:02:58]} 5. d5 {[%clk 0:02:41]}  d6 {[%clk 0:02:56]} 6. e4 {[%clk 0:02:37]}  Nbd7 {[%clk 0:02:55]} 7. Nf3 {[%clk 0:02:28]}  e5 {[%clk 0:02:52]} 8. b4 {[%clk 0:02:25]}  g6 {[%clk 0:02:49]} 9. Bd3 {[%clk 0:02:24]}  Bg7 {[%clk 0:02:47]} 10. O-O {[%clk 0:02:24]}  O-O {[%clk 0:02:47]} 11. Qc2 {[%clk 0:02:17]}  h6 {[%clk 0:02:47]} 12. Be3 {[%clk 0:02:06]}  Nh5 {[%clk 0:02:36]} 13. g3 {[%clk 0:02:01]}  Ndf6 {[%clk 0:02:05]} 14. h3 {[%clk 0:01:53]}  Bc8 {[%clk 0:02:03]} 15. Kh2 {[%clk 0:01:50]}  Qd7 {[%clk 0:01:59]} 16. Ng1 {[%clk 0:01:47]}  Nh7 {[%clk 0:01:51]} 17. c5 {[%clk 0:01:39]}  f5 {[%clk 0:01:49]} 18. exf5 {[%clk 0:01:29]}  gxf5 {[%clk 0:01:44]} 19. g4 {[%clk 0:01:04]}  e4 {[%clk 0:00:59]} 20. Bb5 {[%clk 0:00:50]}  Be5+ {[%clk 0:00:49]} 21. Kh1 {[%clk 0:00:39]}  Qg7 {[%clk 0:00:44]} 22. gxh5 {[%clk 0:00:35]}  Bxc3 {[%clk 0:00:37]} 23. Ne2 {[%clk 0:00:26]}  Bxa1 {[%clk 0:00:34]} 24. Rg1 {[%clk 0:00:26]}  Ng5 {[%clk 0:00:34]} 25. h4 {[%clk 0:00:25]}  Qf7 {[%clk 0:00:28]} 26. Rxa1 {[%clk 0:00:19]}  Qxh5 {[%clk 0:00:26]} 27. Nf4 {[%clk 0:00:13]}  Qxh4+ {[%clk 0:00:25]} 28. Kg2 {[%clk 0:00:13]}  Qg4+ {[%clk 0:00:20]} 29. Kf1 {[%clk 0:00:12]}  Nf3 {[%clk 0:00:16]} 30. Rd1 {[%clk 0:00:10]}  bxc5 {[%clk 0:00:13]} 31. bxc5 {[%clk 0:00:09]}  Rb8 {[%clk 0:00:13]} 32. a4 {[%clk 0:00:08]}  a6 {[%clk 0:00:11]} 33. Bc4 {[%clk 0:00:05]}  Qg7 {[%clk 0:00:06]} 34. Ke2 {[%clk 0:00:04]}  Rb2 {[%clk 0:00:06]} 35. Rc1 {[%clk 0:00:04]}  Qc3 {[%clk 0:00:03]} 36. Bb3 {[%clk 0:00:03]}  Qxb3 {[%clk 0:00:03]} 0-1


[Site "https://www.chess.com"]

[Event "Titled Tuesday Blitz December 20 Early 2022"]
[White "vovachesss"]
[Black "cancrushyou"]
[WhiteElo "2756"]
[BlackElo "2530"]
[Result "0-1"]
[Round "02"]
[TimeControl "180+2"]
[Date "2022.12.20"]
[WhiteClock "0:00:01"]
[BlackClock "0:00:13"]

1. e4 {[%clk 0:03:00]}  c5 {[%clk 0:02:52]} 2. c3 {[%clk 0:03:00]}  e6 {[%clk 0:02:52]} 3. d4 {[%clk 0:03:00]}  d5 {[%clk 0:02:52]} 4. exd5 {[%clk 0:03:00]}  exd5 {[%clk 0:02:52]} 5. Bb5+ {[%clk 0:03:01]}  Nc6 {[%clk 0:02:52]} 6. Nf3 {[%clk 0:03:01]}  Nf6 {[%clk 0:02:44]} 7. O-O {[%clk 0:03:01]}  Be7 {[%clk 0:02:44]} 8. dxc5 {[%clk 0:03:01]}  Bxc5 {[%clk 0:02:44]} 9. Re1+ {[%clk 0:03:01]}  Be6 {[%clk 0:02:45]} 10. Nbd2 {[%clk 0:02:41]}  O-O {[%clk 0:02:44]} 11. Nb3 {[%clk 0:02:40]}  Bb6 {[%clk 0:02:45]} 12. Be3 {[%clk 0:02:40]}  Bc7 {[%clk 0:02:38]} 13. Nbd4 {[%clk 0:02:36]}  Bd7 {[%clk 0:02:36]} 14. Bg5 {[%clk 0:02:31]}  h6 {[%clk 0:02:33]} 15. Bh4 {[%clk 0:02:31]}  g5 {[%clk 0:02:30]} 16. Bg3 {[%clk 0:02:03]}  Bxg3 {[%clk 0:02:29]} 17. hxg3 {[%clk 0:02:04]}  Ne4 {[%clk 0:02:21]} 18. Ba4 {[%clk 0:01:28]}  Qf6 {[%clk 0:02:21]} 19. Bc2 {[%clk 0:00:54]}  Rfe8 {[%clk 0:02:19]} 20. Nxc6 {[%clk 0:00:50]}  Bxc6 {[%clk 0:02:13]} 21. Qd4 {[%clk 0:00:48]}  Qxd4 {[%clk 0:01:52]} 22. Nxd4 {[%clk 0:00:48]}  Nd6 {[%clk 0:01:42]} 23. Bd3 {[%clk 0:00:33]}  Kf8 {[%clk 0:01:38]} 24. f3 {[%clk 0:00:33]}  Rxe1+ {[%clk 0:01:29]} 25. Rxe1 {[%clk 0:00:33]}  Re8 {[%clk 0:01:30]} 26. Rxe8+ {[%clk 0:00:33]}  Kxe8 {[%clk 0:01:31]} 27. Kf2 {[%clk 0:00:32]}  Bd7 {[%clk 0:01:30]} 28. Ke3 {[%clk 0:00:31]}  Ke7 {[%clk 0:01:31]} 29. b3 {[%clk 0:00:30]}  Kf6 {[%clk 0:01:29]} 30. Nc2 {[%clk 0:00:24]}  Ke5 {[%clk 0:01:21]} 31. f4+ {[%clk 0:00:22]}  Kf6 {[%clk 0:01:18]} 32. Kd4 {[%clk 0:00:20]}  Bb5 {[%clk 0:01:08]} 33. Ne3 {[%clk 0:00:11]}  Bxd3 {[%clk 0:01:00]} 34. Kxd3 {[%clk 0:00:12]}  Ke6 {[%clk 0:00:39]} 35. a4 {[%clk 0:00:12]}  Nf5 {[%clk 0:00:26]} 36. Nf1 {[%clk 0:00:04]}  gxf4 {[%clk 0:00:16]} 37. gxf4 {[%clk 0:00:05]}  h5 {[%clk 0:00:16]} 38. b4 {[%clk 0:00:03]}  Nh4 {[%clk 0:00:16]} 39. g3 {[%clk 0:00:03]}  Nf5 {[%clk 0:00:16]} 40. Ke2 {[%clk 0:00:03]}  a6 {[%clk 0:00:16]} 41. Kf3 {[%clk 0:00:03]}  b5 {[%clk 0:00:16]} 42. axb5 {[%clk 0:00:03]}  axb5 {[%clk 0:00:16]} 43. Ne3 {[%clk 0:00:01]}  Nd6 {[%clk 0:00:13]} 44. Nc2 {[%clk 0:00:01]}  Nf5 {[%clk 0:00:13]} 45. Nd4+ {[%clk 0:00:01]}  Nxd4+ {[%clk 0:00:13]} 0-1


[Site "https://www.chess.com"]